[Event "44th Chess Olympiad Women 2022"]
[Site "Chennai"]
[Date "2022.08.02"]
[Round "5.12"]
[White "Gazola, Vanessa Ramos"]
[Black "Vishwa Vasnawala"]
[Result "1/2-1/2"]
[ECO "D26"]
[WhiteElo "2000"]
[BlackElo "2305"]
[Annotator "RC"]
[PlyCount "64"]
[EventDate "2022.07.29"]
[EventType "team-tourn"]
[EventCountry "IND"]
[SourceTitle "playchess.com"]
[Source "ChessBase"]
[SourceQuality "1"]
[WhiteTeam "Brazil"]
[BlackTeam "India"]
[WhiteTeamCountry "BRA"]
[BlackTeamCountry "IND"]
[TimeControl "40/5400+30:1800+30"]

1. d4 {[%emt 0:00:03]} d5 {[%emt 0:00:04]} 2. c4 {[%emt 0:00:17]} dxc4 {[%emt 0:00:04]} 3. e3 {[%emt 0:00:22]} Nf6 {[%emt 0:00:07]} 4. Bxc4 {[%emt 0:00:27]} e6 {[%emt 0:00:04]} 5. Nf3 {[%emt 0:00:44]} c5 {[%emt 0:00:04]} 6. O-O {[%emt 0:00:44]} Nc6 {[%emt 0:00:05]} 7. a3 {[%emt 0:03:28]} a6 {[%emt 0:01:47]} 8. Re1 {[%emt 0:02:21]} b5 {[%emt 0:03:23]} 9. Be2 {[%emt 0:06:53]} Bb7 {[%emt 0:01:46]} 10. dxc5 {[%emt 0:00:46]} Bxc5 {[%emt 0:03:29]} 11. Qxd8+ {[%emt 0:05:43]} Rxd8 {[%emt 0:00:02]} 12. b4 {[%emt 0:00:09]} Bb6 {[%emt 0:05:34]} 13. Bb2 {[%emt 0:01:15]} Ke7 {[%emt 0:01:19]} 14. Nbd2 {[%emt 0:07:04]} Ne8 {[%emt 0:10:58]} 15. Rac1 {[%emt 0:04:56]} f6 {[%emt 0:03:00]} 16. Nb3 {[%emt 0:04:47]} Nd6 {[%emt 0:04:41]} 17. Nc5 {[%emt 0:02:07]} Bxc5 {[%emt 0:01:29]} 18. Rxc5 {[%emt 0:00:08]} e5 {[%emt 0:07:54]} 19. Rec1 {[%emt 0:03:14]} Nb8 {[%emt 0:25:09]} 20. Nd2 {[%emt 0:11:19]} Nd7 {[%emt 0:02:33]} 21. Rc7 {[%emt 0:03:36]} Rc8 {[%emt 0:04:14]} 22. Rxc8 {[%emt 0:04:09]} Rxc8 {[%emt 0:00:06]} 23. Rxc8 {[%emt 0:00:11]} Bxc8 {[%emt 0:00:39]} 24. e4 {[%emt 0:00:11]} Nb6 {[%emt 0:00:46]} 25. f3 {[%emt 0:02:55]} Be6 {[%emt 0:02:01]} 26. Kf2 {[%emt 0:00:34]} Ndc4 {[%emt 0:02:52]} 27. Nxc4 {[%emt 0:01:05]} Bxc4 {[%emt 0:00:42]} 28. Bxc4 {[%emt 0:05:13]} bxc4 {[%emt 0:03:53]} 29. Ke2 {[%emt 0:00:40]} Kd6 {[%emt 0:04:33]} 30. Kd2 {[%emt 0:07:27]} Kc6 {[%emt 0:00:12]} 31. Bc1 {[%emt 0:00:22]} Kb5 {[%emt 0:02:36]} 32. Kc3 {[%emt 0:00:59]} Na4+ {[%emt 0:03:09]} 1/2-1/2

[Event "44th Chess Olympiad Women 2022"]
[Site "Chennai"]
[Date "2022.08.02"]
[Round "5.13"]
[White "Peng, Zhaoqin"]
[Black "Fronda, Jan Jodilyn"]
[Result "1-0"]
[ECO "D45"]
[WhiteElo "2349"]
[BlackElo "2181"]
[Annotator "RC"]
[PlyCount "83"]
[EventDate "2022.07.29"]
[EventType "team-tourn"]
[EventCountry "IND"]
[SourceTitle "playchess.com"]
[Source "ChessBase"]
[SourceQuality "1"]
[WhiteTeam "Netherlands"]
[BlackTeam "Philippines"]
[WhiteTeamCountry "NED"]
[BlackTeamCountry "PHI"]
[TimeControl "40/5400+30:1800+30"]

1. Nf3 {[%emt 0:00:05]} d5 {[%emt 0:01:15]} 2. e3 {[%emt 0:00:24]} c6 {[%emt 0:00:55]} 3. c4 {[%emt 0:02:08]} e6 {[%emt 0:00:21]} 4. b3 {[%emt 0:02:12]} Nf6 {[%emt 0:00:36]} 5. Bb2 {[%emt 0:00:28]} Nbd7 {[%emt 0:00:21]} 6. Be2 {[%emt 0:08:47]} Bd6 {[%emt 0:00:41]} 7. d4 {[%emt 0:00:52]} Qe7 {[%emt 0:01:27]} 8. Nc3 {[%emt 0:07:13]} O-O {[%emt 0:02:18]} 9. Qc2 {[%emt 0:03:31]} b6 {[%emt 0:03:39]} 10. O-O {[%emt 0:02:23]} Bb7 {[%emt 0:00:22]} 11. Rad1 {[%emt 0:07:15]} Rac8 {[%emt 0:02:02]} 12. Bd3 {[%emt 0:10:21]} e5 {[%emt 0:15:38]} 13. dxe5 {[%emt 0:07:57]} Nxe5 {[%emt 0:00:10]} 14. Nxe5 {[%emt 0:04:59]} Qxe5 {[%emt 0:00:43]} 15. g3 {[%emt 0:00:52]} Qh5 {[%emt 0:01:26]} 16. Be2 {[%emt 0:04:52]} Qh3 {[%emt 0:01:48]} 17. Rd4 {[%emt 0:01:59]} Be5 {[%emt 0:03:31]} 18. Rh4 {[%emt 0:01:44]} Qe6 {[%emt 0:00:17]} 19. Bg4 {[%emt 0:03:09]} Qe7 {[%emt 0:04:34]} 20. Bxc8 {[%emt 0:00:43]} Rxc8 {[%emt 0:00:11]} 21. Rd1 {[%emt 0:06:58]} Qe6 {[%emt 0:06:22]} 22. c5 {[%emt 0:05:08]} Re8 {[%emt 0:11:48]} 23. Na4 {[%emt 0:03:06]} b5 {[%emt 0:04:55]} 24. Nc3 {[%emt 0:03:37]} g5 {[%emt 0:01:11]} 25. Rh6 {[%emt 0:01:32]} Kg7 {[%emt 0:00:32]} 26. Rxf6 {[%emt 0:00:10]} Bxf6 {[%emt 0:01:15]} 27. Ne2 {[%emt 0:00:24]} Bxb2 {[%emt 0:07:50]} 28. Qxb2+ {[%emt 0:00:02]} f6 {[%emt 0:00:14]} 29. Nd4 {[%emt 0:00:28]} Qe4 {[%emt 0:03:52]} 30. Qb1 {[%emt 0:01:23]} Qg4 {[%emt 0:07:27]} 31. f3 {[%emt 0:01:16]} Qh3 {[%emt 0:04:17]} 32. Nf5+ {[%emt 0:02:58]} Kf8 {[%emt 0:00:27]} 33. Qd3 {[%emt 0:01:44]} Bc8 {[%emt 0:01:30]} 34. Nd6 {[%emt 0:00:32]} Re7 {[%emt 0:00:13]} 35. Qd4 {[%emt 0:03:06]} Kg7 {[%emt 0:00:10]} 36. e4 {[%emt 0:00:56]} Be6 {[%emt 0:01:38]} 37. Re1 {[%emt 0:01:07]} Bf7 {[%emt 0:09:16]} 38. e5 {[%emt 0:01:46]} f5 {[%emt 0:00:07]} 39. e6+ {[%emt 0:00:18]} Kg6 {[%emt 0:00:01]} 40. Nxf7 {[%emt 0:00:09]} f4 {[%emt 0:01:22]} 41. Qe5 {[%emt 0:30:57]} fxg3 {[%emt 0:31:40]} 42. Qxg5# {[%emt 0:00:14]} 1-0

[Event "44th Chess Olympiad Women 2022"]
[Site "Chennai"]
[Date "2022.08.02"]
[Round "5.13"]
[White "Ratsma, Rosa"]
[Black "Mordido, Kylen Joy"]
[Result "1/2-1/2"]
[ECO "B42"]
[WhiteElo "2226"]
[BlackElo "2023"]
[Annotator "NA RC"]
[PlyCount "92"]
[EventDate "2022.07.29"]
[EventType "team-tourn"]
[EventCountry "IND"]
[SourceTitle "playchess.com"]
[Source "ChessBase"]
[SourceQuality "1"]
[WhiteTeam "Netherlands"]
[BlackTeam "Philippines"]
[WhiteTeamCountry "NED"]
[BlackTeamCountry "PHI"]
[TimeControl "40/5400+30:1800+30"]

1. e4 {[%emt 0:00:04]} c5 {[%emt 0:00:36]} 2. Nf3 {[%emt 0:00:11]} e6 {[%emt 0:01:00]} 3. d4 {[%emt 0:00:17]} cxd4 {[%emt 0:01:08]} 4. Nxd4 {[%emt 0:00:07]} a6 {[%emt 0:00:36]} 5. Bd3 {[%emt 0:00:32]} Qc7 {[%emt 0:02:27]} 6. O-O {[%emt 0:02:19]} Nf6 {[%emt 0:01:49]} 7. Qe2 {[%emt 0:00:46]} d6 {[%emt 0:01:44]} 8. c4 {[%emt 0:00:21]} g6 {[%emt 0:03:31]} 9. Nc3 {[%emt 0:00:41]} Bg7 {[%emt 0:00:42]} 10. Rd1 {[%emt 0:00:40]} O-O {[%emt 0:01:22]} 11. h3 {[%emt 0:00:49]} b6 {[%emt 0:03:26]} 12. Be3 {[%emt 0:04:52]} Nbd7 {[%emt 0:01:26]} 13. Rac1 {[%emt 0:01:05]} Bb7 {[%emt 0:01:27]} 14. b4 {[%emt 0:05:41]} Rac8 {[%emt 0:02:01]} 15. f4 {[%emt 0:08:02]} Qb8 {[%emt 0:06:42]} 16. Bf2 {[%emt 0:12:21]} Bh6 {[%emt 0:06:37]} 17. Be3 {[%emt 0:11:05]} Qa8 {[%emt 0:09:00]} 18. Qf3 {[%emt 0:09:39]} Rfe8 {[%emt 0:06:45]} 19. Nb3 {[%emt 0:13:45]} d5 {[%emt 0:04:11]} 20. cxd5 {[%emt 0:06:07]} exd5 {[%emt 0:00:43]} 21. Nxd5 {[%emt 0:01:47]} Nxd5 {[%emt 0:11:32]} 22. exd5 {[%emt 0:01:08]} Rxc1 {[%emt 0:01:58]} 23. Bxc1 {[%emt 0:00:53]} Bxd5 {[%emt 0:01:22]} 24. Qf1 {[%emt 0:00:50]} b5 {[%emt 0:01:28]} 25. Qf2 {[%emt 0:02:53]} Bf8 {[%emt 0:02:04]} 26. Bb2 {[%emt 0:02:03]} f6 {[%emt 0:13:08]} 27. Qg3 {[%emt 0:05:16]} Re7 {[%emt 0:03:31]} 28. Bd4 {[%emt 0:01:51]} Qb8 {[%emt 0:04:33]} 29. h4 {[%emt 0:01:13]} Bh6 {[%emt 0:00:56]} 30. Rf1 {[%emt 0:01:52]} Qd6 {[%emt 0:01:40]} 31. Qf2 {[%emt 0:02:22]} f5 {[%emt 0:02:50]} 32. Nc5 {[%emt 0:01:11]} Bg7 {[%emt 0:00:58]} 33. Bxg7 {[%emt 0:01:09]} Rxg7 {[%emt 0:00:04]} 34. Qd4 {[%emt 0:00:55]} Nxc5 {[%emt 0:02:07]} 35. bxc5 {[%emt 0:00:10]} Qc6 {[%emt 0:00:04]} 36. Re1 {[%emt 0:00:26]} Rc7 {[%emt 0:01:03]} 37. Kh2 {[%emt 0:01:19]} Bf7 {[%emt 0:01:47]} 38. Re5 {[%emt 0:01:47]} Bxa2 {[%emt 0:00:37]} 39. Qd8+ {[%emt 0:00:36]} Kg7 {[%emt 0:00:06]} 40. h5 {[%emt 0:00:46]} Qd7 {[%emt 0:00:54]} 41. h6+ {[%emt 0:10:23]} Kxh6 {[%emt 0:00:53]} 42. Qf8+ {[%emt 0:02:30]} Qg7 {[%emt 0:00:26]} 43. Qd8 {[%emt 0:00:46]} Qd7 {[%emt 0:01:01]} 44. Qf8+ {[%emt 0:01:34]} Qg7 {[%emt 0:00:13]} 45. Qd8 {[%emt 0:00:55]} Qd7 {[%emt 0:04:17]} 46. Qf8+ {[%emt 0:00:43]} Qg7 {[%emt 0:00:23]} 1/2-1/2

[Event "44th Chess Olympiad Women 2022"]
[Site "Chennai"]
[Date "2022.08.02"]
[Round "5.13"]
[White "Frayna, Janelle Mae"]
[Black "Roebers, Eline"]
[Result "0-1"]
[ECO "E63"]
[WhiteElo "2224"]
[BlackElo "2344"]
[Annotator "RC"]
[PlyCount "140"]
[EventDate "2022.07.29"]
[EventType "team-tourn"]
[EventCountry "IND"]
[SourceTitle "playchess.com"]
[Source "ChessBase"]
[SourceQuality "1"]
[WhiteTeam "Philippines"]
[BlackTeam "Netherlands"]
[WhiteTeamCountry "PHI"]
[BlackTeamCountry "NED"]
[TimeControl "40/5400+30:1800+30"]

1. Nf3 {[%emt 0:00:16]} Nf6 {[%emt 0:00:06]} 2. c4 {[%emt 0:00:35]} g6 {[%emt 0:00:06]} 3. g3 {[%emt 0:00:15]} Bg7 {[%emt 0:00:05]} 4. Bg2 {[%emt 0:00:05]} O-O {[%emt 0:00:12]} 5. O-O {[%emt 0:01:09]} d6 {[%emt 0:00:15]} 6. d4 {[%emt 0:00:16]} Nc6 {[%emt 0:00:42]} 7. Nc3 {[%emt 0:00:56]} a6 {[%emt 0:00:08]} 8. b3 {[%emt 0:01:50]} Rb8 {[%emt 0:00:23]} 9. d5 {[%emt 0:03:34]} Na5 {[%emt 0:00:13]} 10. Bg5 {[%emt 0:00:24]} b5 {[%emt 0:02:20]} 11. cxb5 {[%emt 0:09:57]} axb5 {[%emt 0:00:20]} 12. b4 {[%emt 0:00:05]} c5 {[%emt 0:00:43]} 13. bxa5 {[%emt 0:09:25]} Qxa5 {[%emt 0:00:22]} 14. Rc1 {[%emt 0:11:06]} b4 {[%emt 0:01:37]} 15. Bxf6 {[%emt 0:00:49]} Bxf6 {[%emt 0:00:08]} 16. Ne4 {[%emt 0:00:02]} Bg7 {[%emt 0:00:12]} 17. Qb3 {[%emt 0:02:41]} Bd7 {[%emt 0:17:01]} 18. Ned2 {[%emt 0:07:40]} Ra8 {[%emt 0:03:04]} 19. Ra1 {[%emt 0:00:42]} Qa3 {[%emt 0:21:11]} 20. Rab1 {[%emt 0:07:52]} Qxa2 {[%emt 0:01:04]} 21. Rfc1 {[%emt 0:01:32]} Qxb3 {[%emt 0:05:00]} 22. Rxb3 {[%emt 0:01:01]} Ra2 {[%emt 0:04:44]} 23. e3 {[%emt 0:04:12]} Ba4 {[%emt 0:01:48]} 24. Rbb1 {[%emt 0:06:47]} Bc2 {[%emt 0:00:55]} 25. Bf1 {[%emt 0:01:11]} Bxb1 {[%emt 0:08:05]} 26. Rxb1 {[%emt 0:00:08]} Rfa8 {[%emt 0:01:28]} 27. Bc4 {[%emt 0:06:55]} Ra1 {[%emt 0:03:02]} 28. Kf1 {[%emt 0:00:07]} Rxb1+ {[%emt 0:02:43]} 29. Nxb1 {[%emt 0:00:03]} Ra1 {[%emt 0:00:04]} 30. Nfd2 {[%emt 0:00:05]} Bc3 {[%emt 0:00:05]} 31. Ke2 {[%emt 0:00:05]} Bxd2 {[%emt 0:00:09]} 32. Nxd2 {[%emt 0:00:04]} Rc1 {[%emt 0:00:13]} 33. h4 {[%emt 0:01:02]} Kf8 {[%emt 0:00:40]} 34. e4 {[%emt 0:04:02]} Ke8 {[%emt 0:03:31]} 35. Bb5+ {[%emt 0:00:36]} Kd8 {[%emt 0:00:28]} 36. Bd3 {[%emt 0:01:44]} Kc7 {[%emt 0:07:30]} 37. Nc4 {[%emt 0:02:20]} Ra1 {[%emt 0:02:29]} 38. Nd2 {[%emt 0:05:00]} Ra2 {[%emt 0:07:42]} 39. Bc4 {[%emt 0:03:18]} Rc2 {[%emt 0:02:26]} 40. Bd3 {[%emt 0:00:17]} Ra2 {[%emt 0:05:28]} 41. Bc4 {[%emt 0:30:04]} Ra1 {[%emt 0:04:50]} 42. Bd3 {[%emt 0:00:00]} f6 {[%emt 0:03:50]} 43. Nc4 {[%emt 0:00:00]} h5 {[%emt 0:05:36]} 44. f4 {[%emt 0:00:00]} Ra8 {[%emt 0:04:29]} 45. Ke3 {[%emt 0:00:00]} Rg8 {[%emt 0:01:24]} 46. Bc2 {[%emt 0:00:00]} Kd8 {[%emt 0:04:48]} 47. Ba4 {[%emt 0:00:00]} g5 {[%emt 0:03:07]} 48. fxg5 {[%emt 0:00:00]} fxg5 {[%emt 0:00:04]} 49. hxg5 {[%emt 0:00:00]} Rxg5 {[%emt 0:00:02]} 50. Kf4 {[%emt 0:00:00]} Rg4+ {[%emt 0:00:11]} 51. Kf3 {[%emt 0:00:00]} Rg8 {[%emt 0:00:44]} 52. Kf4 {[%emt 0:00:00]} Rf8+ {[%emt 0:00:39]} 53. Ke3 {[%emt 0:00:00]} Rf1 {[%emt 0:00:26]} 54. Bc2 {[%emt 0:00:00]} Rg1 {[%emt 0:04:11]} 55. Kf2 {[%emt 0:00:00]} Rc1 {[%emt 0:00:17]} 56. Bd3 {[%emt 0:00:00]} Ke8 {[%emt 0:01:21]} 57. e5 {[%emt 0:03:39]} dxe5 {[%emt 0:00:47]} 58. Nxe5 {[%emt 0:00:03]} Kf8 {[%emt 0:00:30]} 59. Ke2 {[%emt 0:01:06]} Kg7 {[%emt 0:00:24]} 60. Nc4 {[%emt 0:01:49]} Kf6 {[%emt 0:00:40]} 61. Ke3 {[%emt 0:00:45]} Kg5 {[%emt 0:01:07]} 62. Nd2 {[%emt 0:07:06]} Kf6 {[%emt 0:01:56]} 63. Nc4 {[%emt 0:00:08]} Rh1 {[%emt 0:00:59]} 64. Kf4 {[%emt 0:02:27]} h4 {[%emt 0:00:46]} 65. gxh4 {[%emt 0:01:42]} Rxh4+ {[%emt 0:00:12]} 66. Ke3 {[%emt 0:00:04]} Rd4 {[%emt 0:00:31]} 67. Nb6 {[%emt 0:00:15]} Ke5 {[%emt 0:00:14]} 68. Bc4 {[%emt 0:00:14]} Rh4 {[%emt 0:00:16]} 69. Be2 {[%emt 0:00:54]} b3 {[%emt 0:00:59]} 70. Kd2 {[%emt 0:00:41]} b2 {[%emt 0:00:31]} 0-1

[Event "44th Chess Olympiad Women 2022"]
[Site "Chennai"]
[Date "2022.08.02"]
[Round "5.13"]
[White "San Diego, Marie Antoinette"]
[Black "Van Foreest, Machteld"]
[Result "1-0"]
[ECO "D43"]
[WhiteElo "2101"]
[BlackElo "2299"]
[Annotator "NA RC"]
[PlyCount "81"]
[EventDate "2022.07.29"]
[EventType "team-tourn"]
[EventCountry "IND"]
[SourceTitle "playchess.com"]
[Source "ChessBase"]
[SourceQuality "1"]
[WhiteTeam "Philippines"]
[BlackTeam "Netherlands"]
[WhiteTeamCountry "PHI"]
[BlackTeamCountry "NED"]
[TimeControl "40/5400+30:1800+30"]

1. d4 {[%emt 0:00:06]} d5 {[%emt 0:00:06]} 2. Nf3 {[%emt 0:00:10]} Nf6 {[%emt 0:00:07]} 3. c4 {[%emt 0:00:12]} c6 {[%emt 0:00:04]} 4. Nc3 {[%emt 0:00:10]} e6 {[%emt 0:00:09]} 5. Bg5 {[%emt 0:00:05]} h6 {[%emt 0:01:40]} 6. Bxf6 {[%emt 0:01:52]} Qxf6 {[%emt 0:00:16]} 7. e4 {[%emt 0:00:18]} dxe4 {[%emt 0:08:21]} 8. Nxe4 {[%emt 0:00:10]} Bb4+ {[%emt 0:01:39]} 9. Nc3 {[%emt 0:03:39]} O-O {[%emt 0:06:09]} 10. Be2 {[%emt 0:04:52]} Nd7 {[%emt 0:09:00]} 11. O-O {[%emt 0:05:38]} Qe7 {[%emt 0:07:16]} 12. Qc2 {[%emt 0:02:19]} Nf6 {[%emt 0:02:00]} 13. Rad1 {[%emt 0:02:17]} Rd8 {[%emt 0:01:24]} 14. Ne5 {[%emt 0:02:32]} Bd7 {[%emt 0:04:37]} 15. Ne4 {[%emt 0:07:23]} Be8 {[%emt 0:10:45]} 16. Nxf6+ {[%emt 0:13:13]} Qxf6 {[%emt 0:00:40]} 17. c5 {[%emt 0:00:45]} Ba5 {[%emt 0:12:39]} 18. f4 {[%emt 0:04:06]} Bc7 {[%emt 0:00:00]} 19. Qe4 {[%emt 0:02:15]} Qf5 {[%emt 0:04:34]} 20. Qe3 {[%emt 0:06:00]} b6 {[%emt 0:03:31]} 21. b4 {[%emt 0:09:17]} a5 {[%emt 0:03:15]} 22. g4 {[%emt 0:17:24]} Qh7 {[%emt 0:06:15]} 23. Bd3 {[%emt 0:02:05]} g6 {[%emt 0:01:18]} 24. f5 {[%emt 0:00:50]} Qg7 {[%emt 0:05:47]} 25. fxe6 {[%emt 0:09:32]} fxe6 {[%emt 0:01:14]} 26. Bc4 {[%emt 0:00:15]} Bxe5 {[%emt 0:03:36]} 27. Bxe6+ {[%emt 0:00:14]} Kh7 {[%emt 0:02:04]} 28. dxe5 {[%emt 0:02:11]} bxc5 {[%emt 0:00:52]} 29. bxc5 {[%emt 0:00:10]} Rxd1 {[%emt 0:01:55]} 30. Rxd1 {[%emt 0:00:06]} Qe7 {[%emt 0:00:10]} 31. Bc4 {[%emt 0:01:44]} a4 {[%emt 0:01:30]} 32. h3 {[%emt 0:03:15]} Ra5 {[%emt 0:01:37]} 33. Rd6 {[%emt 0:00:21]} Qb7 {[%emt 0:01:45]} 34. Rd8 {[%emt 0:01:15]} Qe7 {[%emt 0:00:32]} 35. Rd6 {[%emt 0:00:12]} Qb7 {[%emt 0:00:15]} 36. Bd3 {[%emt 0:00:49]} Qb4 {[%emt 0:00:43]} 37. Rd8 {[%emt 0:00:37]} Rxc5 {[%emt 0:00:41]} 38. Rxe8 {[%emt 0:00:21]} Rc3 {[%emt 0:00:24]} 39. Re6 {[%emt 0:00:44]} Qa5 {[%emt 0:00:36]} 40. Rxg6 {[%emt 0:00:29]} Rxd3 {[%emt 0:00:31]} 41. Qxh6# {[%emt 0:30:15]} 1-0

[Event "44th Chess Olympiad Women 2022"]
[Site "Chennai"]
[Date "2022.08.02"]
[Round "5.14"]
[White "Injac, Teodora"]
[Black "Zuriel, Marisa"]
[Result "1-0"]
[ECO "A37"]
[WhiteElo "2372"]
[BlackElo "2174"]
[Annotator "RC"]
[PlyCount "97"]
[EventDate "2022.07.29"]
[EventType "team-tourn"]
[EventCountry "IND"]
[SourceTitle "playchess.com"]
[Source "ChessBase"]
[SourceQuality "1"]
[WhiteTeam "Serbia"]
[BlackTeam "Argentina"]
[WhiteTeamCountry "SRB"]
[BlackTeamCountry "ARG"]
[TimeControl "40/5400+30:1800+30"]

1. Nf3 {[%emt 0:00:09]} c5 {[%emt 0:00:10]} 2. c4 {[%emt 0:00:31]} Nc6 {[%emt 0:00:16]} 3. Nc3 {[%emt 0:00:51]} e5 {[%emt 0:00:39]} 4. g3 {[%emt 0:01:17]} g6 {[%emt 0:00:30]} 5. Bg2 {[%emt 0:00:14]} Bg7 {[%emt 0:00:09]} 6. O-O {[%emt 0:04:12]} d6 {[%emt 0:00:27]} 7. a3 {[%emt 0:01:27]} a5 {[%emt 0:00:25]} 8. d3 {[%emt 0:08:52]} Nge7 {[%emt 0:00:28]} 9. Rb1 {[%emt 0:03:37]} O-O {[%emt 0:00:29]} 10. Ne1 {[%emt 0:02:25]} Be6 {[%emt 0:00:32]} 11. Nd5 {[%emt 0:00:50]} f5 {[%emt 0:06:31]} 12. Nc2 {[%emt 0:10:03]} Rb8 {[%emt 0:06:09]} 13. b4 {[%emt 0:02:51]} axb4 {[%emt 0:01:49]} 14. axb4 {[%emt 0:00:46]} b6 {[%emt 0:06:47]} 15. Bg5 {[%emt 0:13:41]} h6 {[%emt 0:05:09]} 16. Bxe7 {[%emt 0:00:28]} Nxe7 {[%emt 0:00:08]} 17. bxc5 {[%emt 0:01:15]} Bxd5 {[%emt 0:12:58]} 18. cxd6 {[%emt 0:00:25]} Qxd6 {[%emt 0:00:04]} 19. cxd5 {[%emt 0:00:09]} Nxd5 {[%emt 0:00:06]} 20. Na3 {[%emt 0:07:06]} Qxa3 {[%emt 0:01:56]} 21. Bxd5+ {[%emt 0:00:05]} Kh8 {[%emt 0:00:07]} 22. e4 {[%emt 0:03:48]} Qd6 {[%emt 0:07:19]} 23. Rc1 {[%emt 0:08:24]} Rbc8 {[%emt 0:08:13]} 24. Qb3 {[%emt 0:14:27]} Rc5 {[%emt 0:07:44]} 25. Rb1 {[%emt 0:00:47]} Rb8 {[%emt 0:00:13]} 26. Ra1 {[%emt 0:03:13]} Bf6 {[%emt 0:13:14]} 27. Ra7 {[%emt 0:01:12]} Rc7 {[%emt 0:00:09]} 28. Ra6 {[%emt 0:03:55]} Bd8 {[%emt 0:00:45]} 29. Qb2 {[%emt 0:01:37]} Kh7 {[%emt 0:02:23]} 30. Qb5 {[%emt 0:01:10]} Be7 {[%emt 0:12:10]} 31. Ba2 {[%emt 0:00:37]} fxe4 {[%emt 0:01:38]} 32. dxe4 {[%emt 0:00:12]} Qf6 {[%emt 0:00:40]} 33. Qb3 {[%emt 0:04:47]} Bc5 {[%emt 0:00:17]} 34. Kg2 {[%emt 0:00:48]} Rf8 {[%emt 0:00:22]} 35. Bb1 {[%emt 0:01:13]} Bd4 {[%emt 0:00:19]} 36. Ra2 {[%emt 0:00:18]} h5 {[%emt 0:00:13]} 37. h4 {[%emt 0:00:37]} Rc3 {[%emt 0:00:23]} 38. Qd1 {[%emt 0:00:13]} Rf3 {[%emt 0:01:02]} 39. Qd2 {[%emt 0:00:50]} Be3 {[%emt 0:01:53]} 40. Qe2 {[%emt 0:00:34]} Bd4 {[%emt 0:00:55]} 41. Ra7+ {[%emt 0:30:28]} Kh8 {[%emt 0:30:50]} 42. Ra2 {[%emt 0:00:00]} Rf7 {[%emt 0:00:00]} 43. Rc2 {[%emt 0:00:00]} Rf8 {[%emt 0:00:00]} 44. Ba2 {[%emt 0:00:00]} g5 {[%emt 0:00:00]} 45. hxg5 {[%emt 0:00:00]} Qxg5 {[%emt 0:00:00]} 46. Rc8 {[%emt 0:00:00]} Rxf2+ {[%emt 0:00:00]} 47. Rxf2 {[%emt 0:00:00]} Rxc8 {[%emt 0:00:00]} 48. Rf5 {[%emt 0:00:00]} Qg6 {[%emt 0:00:00]} 49. Bf7 {[%emt 0:00:00]} 1-0

[Event "44th Chess Olympiad Women 2022"]
[Site "Chennai"]
[Date "2022.08.02"]
[Round "5.14"]
[White "Eric, Jovana"]
[Black "Borda Rodas, Anapaola S."]
[Result "1-0"]
[ECO "C54"]
[WhiteElo "2271"]
[BlackElo "2183"]
[Annotator "NA RC"]
[PlyCount "65"]
[EventDate "2022.07.29"]
[EventType "team-tourn"]
[EventCountry "IND"]
[SourceTitle "playchess.com"]
[Source "ChessBase"]
[SourceQuality "1"]
[WhiteTeam "Serbia"]
[BlackTeam "Argentina"]
[WhiteTeamCountry "SRB"]
[BlackTeamCountry "ARG"]
[TimeControl "40/5400+30:1800+30"]

1. e4 {[%emt 0:00:03]} e5 {[%emt 0:00:22]} 2. Nf3 {[%emt 0:00:11]} Nc6 {[%emt 0:00:13]} 3. Bc4 {[%emt 0:00:15]} Bc5 {[%emt 0:00:08]} 4. c3 {[%emt 0:00:14]} Nf6 {[%emt 0:00:19]} 5. d3 {[%emt 0:00:23]} d6 {[%emt 0:00:37]} 6. Bb3 {[%emt 0:00:43]} a6 {[%emt 0:00:38]} 7. O-O {[%emt 0:00:43]} Ba7 {[%emt 0:00:31]} 8. Nbd2 {[%emt 0:00:40]} h6 {[%emt 0:00:39]} 9. Re1 {[%emt 0:02:37]} g5 {[%emt 0:00:45]} 10. Nf1 {[%emt 0:00:58]} g4 {[%emt 0:00:38]} 11. N3d2 {[%emt 0:00:17]} Nh5 {[%emt 0:00:07]} 12. Nc4 {[%emt 0:06:22]} Qf6 {[%emt 0:00:30]} 13. Be3 {[%emt 0:00:30]} Nf4 {[%emt 0:00:30]} 14. Bxa7 {[%emt 0:00:30]} Nxa7 {[%emt 0:00:30]} 15. Nce3 {[%emt 0:00:30]} Nc6 {[%emt 0:00:30]} 16. Nd5 {[%emt 0:00:30]} Nxd5 {[%emt 0:00:30]} 17. exd5 {[%emt 0:00:30]} Ne7 {[%emt 0:00:30]} 18. d4 {[%emt 0:00:30]} exd4 {[%emt 0:13:08]} 19. cxd4 {[%emt 0:27:14]} Bd7 {[%emt 0:00:16]} 20. Rc1 {[%emt 0:04:08]} Kd8 {[%emt 0:01:53]} 21. Ng3 {[%emt 0:05:07]} h5 {[%emt 0:12:27]} 22. Qd2 {[%emt 0:06:21]} h4 {[%emt 0:07:07]} 23. Ne4 {[%emt 0:00:11]} Qg6 {[%emt 0:04:30]} 24. Rc3 {[%emt 0:15:31]} Rh5 {[%emt 0:16:41]} 25. Qe3 {[%emt 0:14:02]} Nxd5 {[%emt 0:02:56]} 26. Bxd5 {[%emt 0:00:04]} Rxd5 {[%emt 0:00:05]} 27. Rb3 {[%emt 0:00:18]} b6 {[%emt 0:10:29]} 28. Nc3 {[%emt 0:00:43]} Rh5 {[%emt 0:03:01]} 29. Qe7+ {[%emt 0:05:06]} Kc8 {[%emt 0:00:10]} 30. Ne4 {[%emt 0:00:21]} Rf5 {[%emt 0:10:34]} 31. Rxb6 {[%emt 0:01:41]} Qh6 {[%emt 0:05:11]} 32. Nxd6+ {[%emt 0:02:30]} cxd6 {[%emt 0:04:18]} 33. Rxd6 {[%emt 0:00:05]} 1-0